Cogmind - Beta 13 @@@ ROGUE MODE // 2024.08.03 @ 14:52:26 Player: btracker Result: Destroyed by G-47 Trooper with Particle Gun Performance ------------- Evolutions (2) 1000 Regions Visited (4) 800 Robots Destroyed (43) 215 Value Destroyed (1138) 1138 Prototype IDs (0) 0 Alien Tech Used (0) 0 Bonus (0) 0 TOTAL SCORE: 3153 Bonus ------- None Cogmind --------- Core Integrity 0/550 Matter 290/300 Energy 100/100 System Corruption 7% Temperature Cool (27) Movement Core (1400) Ox27 Location -8/Materials Parts ------- > --- POWER (2) -------- (None) > --- PROPULSION (4) --- (None) > --- UTILITY (2) ------ Heat Sink Huge Storage Unit > --- WEAPON (3) ------- Katana > --- INVENTORY (25) --- Small Storage Unit Medium Storage Unit Large Storage Unit Small Laser Peak State ------------ > --- POWER ------------ Improved Deuterium Engine Improved Deuterium Engine > --- PROPULSION ------- Armored Treads Compact Wheel Compact Wheel > --- UTILITY ---------- Improved Heat Sink Huge Storage Unit > --- WEAPON ----------- Pulse Rifle Improved Light Cannon Katana > --- INVENTORY -------- Ion Engine Heat Sink Small Storage Unit Medium Storage Unit Large Storage Unit Small Laser [Rating: 25] Favorites ----------- Power Ion Engine Engine Ion Engine Power Core Light Nuclear Core Propulsion Aluminum Leg Treads Armored Treads Leg Aluminum Leg Wheel Compact Wheel Utility Huge Storage Unit Device Improved Heat Sink Storage Huge Storage Unit Weapon Katana Energy Gun Particle Gun Energy Cannon Light EM Pulse Cannon Ballistic Cannon Improved Light Cannon Slashing Weapon Katana Build | -11 -10 -9 -9 -8 ------- Run | Yrd Mat Mat Min Mat Slots Evolved 4 | . . 2 . 2 Power 1 | . . . . 1 Propulsion 2 | . . 2 . . Utility . | . . . . . Weapon 1 | . . . . 1 Parts Attached 49 | 7 6 1 18 17 Power 10 | 1 1 . 2 6 Engine 9 | 1 1 . 2 5 Core 1 | . . . . 1 Reactor . | . . . . . Propulsion 17 | 2 2 1 6 6 Treads 2 | . . . . 2 Leg 13 | 2 2 1 6 2 Wheel 2 | . . . . 2 Hover . | . . . . . Flight . | . . . . . Utility 7 | 2 1 . 2 2 Device 4 | 1 . . 1 2 Storage 3 | 1 1 . 1 . Processor . | . . . . . Hackware . | . . . . . Protection . | . . . . . Artifact . | . . . . . Weapon 15 | 2 2 . 8 3 Energy Gun 11 | 2 2 . 5 2 Energy Cannon 2 | . . . 2 . Ballistic Gun . | . . . . . Ballistic Cannon 1 | . . . . 1 Launcher . | . . . . . Special Weapon . | . . . . . Impact Weapon . | . . . . . Slashing Weapon 1 | . . . 1 . Piercing Weapon . | . . . . . Special Melee Weapon . | . . . . . Unidentified Prototypes . | . . . . . Corrupted Parts 2 | . . . 2 . System Corruption 5 | . . . 5 . Parts Lost 22 | . . . 4 18 Power 7 | . . . 1 6 Propulsion 9 | . . . 1 8 Utility 2 | . . . 1 1 Weapon 4 | . . . 1 3 Highest Loss Streak 7 | . . . 2 7 To Critical Strikes 2 | . . . . 2 Average Slot Usage (%) 79 | . 100 88 80 70 Engine 12 | . 14 11 10 12 Treads 1 | . . . . 2 Leg 19 | . 28 33 33 11 Device 8 | . 14 11 3 8 Storage 10 | . 14 11 11 9 Energy Gun 14 | . 28 22 14 8 Ballistic Cannon 4 | . . . . 7 Slashing Weapon 5 | . . . 3 9 Naked Turns . | . . . . . Heaviest Build 110 | 14 22 22 93 110 Greatest Support 33 | 20 20 30 33 33 Greatest Overweight (x) 36 | . 1 . 8 36 Average Overweight (x) 3 | . . . 2 10 Largest Inventory Capacity 25 | 8 10 10 25 25 Average Capacity 20 | 7 9 10 24 25 Most Carried 10 | 4 8 7 10 8 Average Carried 7 | 2 7 7 9 7 Final Capacity 25 | 8 10 10 25 25 Final Carried 9 | 4 8 7 9 4 Class Distribution -------------------- 54% | Mutant 45% | Scavenger-Mutant Dominant Class ---------------- Scavenger-Mutant | -10/Materials Scavenger-Mutant | -9/Materials Scavenger-Mutant | -9/Mines Mutant | -8/Materials Resources | -11 -10 -9 -9 -8 ----------- Run | Yrd Mat Mat Min Mat Matter Collected 735 | 54 276 . 180 225 Remotely . | . . . . . Salvage Created 1603 | 27 547 . 373 656 Parts 84 | 3 26 . 20 35 Haulers Intercepted 1 | . 1 . . . Recyclers Shooed 7 | . 2 . 3 2 Parts Field Recycled . | . . . . . Retrieved Matter . | . . . . . Parts Self-Destructed . | . . . . . Prevented . | . . . . . Kills | -11 -10 -9 -9 -8 ------- Run | Yrd Mat Mat Min Mat Combat Hostiles Destroyed 27 | . 6 . 9 12 Melee 7 | . . . 2 5 Guns 15 | . 6 . 5 4 Cannons 5 | . . . 2 3 Classes Destroyed 11 | 1 5 . 2 3 Worker 4 | . 1 . 3 . Tunneler 2 | 1 . . . 1 Hauler 1 | . 1 . . . Recycler 4 | . 2 . . 2 Watcher 5 | . 2 . . 3 Swarmer 6 | . . . 3 3 Grunt 15 | . 6 . 5 4 Brawler 1 | . . . . 1 Duelist 1 | . . . 1 . Sentry 2 | . . . . 2 Hunter 2 | . . . . 2 Best Kill Streak 9 | 1 7 . 9 6 Combat Bots Only 6 | . 2 . 6 6 Max Kills in Single Turn 2 | 1 2 . 2 1 Gunslinging 1 | . 1 . . . Exploded . | . . . . . Melee 1 | . . . 1 1 Uniques/NPCs Destroyed . | . . . . . Combat | -11 -10 -9 -9 -8 -------- Run | Yrd Mat Mat Min Mat Hostile Shots Fired 316 | . 28 . 81 207 Missed 69 | . 3 . 16 50 Damage Taken 3430 | . 340 . 740 2350 Core 884 | . 109 . 216 559 Absorbed by Shields . | . . . . . Core Remaining (%) 67 | 100 56 . 46 . Volleys Fired 94 | 1 36 . 22 35 Largest 2 | 2 2 . 2 2 Hottest 130 | 80 130 . 121 102 Shots Fired 168 | 2 69 . 35 62 Gun 131 | 2 69 . 28 32 Cannon 37 | . . . 7 30 Launcher . | . . . . . Special . | . . . . . Kinetic 30 | . . . . 30 Thermal 102 | 1 41 . 28 32 Explosive . | . . . . . Electromagnetic 36 | 1 28 . 7 . Robot Hit Streak 10 | 1 8 . 4 10 Robot Miss Streak 6 | . 3 . 6 3 Penetration Max . | . . . . . Secondary Targets 2 | . 2 . . . Max Gunslinging Chain 1 | . 1 . . . Shots Hit Robots 126 | 1 39 . 22 64 Core Hits 62 | 1 20 . 14 27 Critical Kills . | . . . . . Critical Parts Destroyed . | . . . . . Critical Strikes 12 | . 1 . 1 10 Burn 6 | . 1 . . 5 Blast 1 | . . . . 1 Corrupt 1 | . . . 1 . Sever 4 | . . . . 4 Melee Attacks 39 | . . . 6 33 Impact . | . . . . . Slashing 39 | . . . 6 33 Piercing . | . . . . . Sneak Attacks 2 | . . . . 2 Combat Hostiles . | . . . . . Follow-up Attacks . | . . . . . Damage Inflicted 2706 | 12 580 . 618 1496 Guns 1292 | 12 580 . 257 443 Cannons 481 | . . . 125 356 Explosions 89 | . . . 89 . Melee 844 | . . . 147 697 Ramming . | . . . . . Kinetic 356 | . . . . 356 Thermal 1142 | . 353 . 346 443 Explosive . | . . . . . Electromagnetic 364 | 12 227 . 125 . Impact . | . . . . . Slashing 844 | . . . 147 697 Piercing . | . . . . . Highest Corruption 7 | . . . 5 7 Average Corruption 6 | . . . 4 6 Corruption Purged . | . . . . . Corruption Blocked . | . . . . . Effects 7 | . . . 4 3 Message Errors 3 | . . . 1 2 Matter Fused 1 | . . . 1 . Data Loss (minor) 3 | . . . 2 1 Overload Shots . | . . . . . Overflow Damage 90 | . . . 25 65 Projectiles 21 | . . . 17 4 Explosions 8 | . . . 8 . Melee 61 | . . . . 61 Knockbacks 4 | . . . . 4 Impact . | . . . . . Kinetic 4 | . . . . 4 Secondary . | . . . . . Self-Inflicted Damage 12 | . . . 12 . Shots 1 | . . . 1 . Rammed . | . . . . . Targets Rammed . | . . . . . Kicked . | . . . . . Crushed . | . . . . . Highest Temperature 480 | 18 480 . 279 54 Average Temperature 117 | 12 150 . 118 21 Received Heat Transfer 1164 | . 192 . 180 792 Effects 6 | . 5 . 1 . Shutdowns 1 | . 1 . . . Energy Bleed 2 | . 2 . . . Interference 3 | . 2 . 1 . Siege Activations . | . . . . . Robots Corrupted . | . . . . . Combat Hostiles . | . . . . . Parts Fried . | . . . . . Impact Corruptions . | . . . . . Robots Melted . | . . . . . Combat Hostiles . | . . . . . Parts Melted 2 | . 2 . . . Heat Transferred 2992 | . 892 . 768 1332 Parts Sabotaged . | . . . . . Parts Stolen . | . . . . . Parts Stripped . | . . . . . Power Chain Reactions 1 | . . . 1 . Alert | -11 -10 -9 -9 -8 ------- Run | Yrd Mat Mat Min Mat Peak Influence 343 | 5 149 29 244 343 Initial 29 | . 3 29 10 16 Average 79 | 1 82 29 117 70 Maximum Alert Level 1 | . . . 1 1 Low Security (%) 93 | 100 100 100 79 95 Level 1 6 | . . . 20 4 Level 2 . | . . . . . Level 3 . | . . . . . Level 4 . | . . . . . Level 5 . | . . . . . High Security . | . . . . . Max Security . | . . . . . Squads Dispatched 2 | . 1 . . 1 Investigation 1 | . . . . 1 Extermination . | . . . . . Reinforcement 1 | . 1 . . . Assault . | . . . . . Garrison . | . . . . . Intercept . | . . . . . Searches Triggered . | . . . . . Construction Impeded . | . . . . . Haulers Reinforced . | . . . . . Active Scanning Responses . | . . . . . Cargo Convoy Interrupts . | . . . . . Stealth | -11 -10 -9 -9 -8 --------- Run | Yrd Mat Mat Min Mat Distress Signals . | . . . . . Communications Jammed . | . . . . . Distress Signals . | . . . . . Times Spotted 49 | . 9 . 11 29 Peak Tracking Total 6 | . 3 . 6 6 Tactical Retreats 5 | . . . 1 4 Traps | -11 -10 -9 -9 -8 ------- Run | Yrd Mat Mat Min Mat Traps Triggered . | . . . . . Indirectly . | . . . . . Trap Hack Attempts . | . . . . . Triggered . | . . . . . Disarmed . | . . . . . Reprogrammed . | . . . . . Reused . | . . . . . Traps Extracted . | . . . . . Installed . | . . . . . Triggered . | . . . . . Machines | -11 -10 -9 -9 -8 ---------- Run | Yrd Mat Mat Min Mat Machines Disabled 3 | . . . 1 2 Max in Single Turn 2 | . . . 1 2 Machines Repaired . | . . . . . Machines Dismantled . | . . . . . Machines Sabotaged . | . . . . . Overloaded Fab Kills . | . . . . . Hacking | -11 -10 -9 -9 -8 --------- Run | Yrd Mat Mat Min Mat Machines Accessed 3 | . 1 . . 2 Terminals 2 | . . . . 2 Fabricators . | . . . . . Repair Stations . | . . . . . Recycling Units 1 | . 1 . . . Scanalyzers . | . . . . . Garrison Access . | . . . . . Total Hacks 12 | . 2 . . 10 Successful 5 | . 2 . . 3 Failed 7 | . . . . 7 Catastrophic 1 | . . . . 1 Database Lockouts . | . . . . . Manual 9 | . 1 . . 8 Terminals 10 | . . . . 10 Fabricators . | . . . . . Repair Stations . | . . . . . Recycling Units 2 | . 2 . . . Scanalyzers . | . . . . . Garrison Access . | . . . . . Terminal Hacks 3 | . . . . 3 Security Status 1 | . . . . 1 Transport Status 1 | . . . . 1 Investigation Status 1 | . . . . 1 Fabricator Hacks . | . . . . . Repair Station Hacks . | . . . . . Recycling Unit Hacks 2 | . 2 . . . Report Inventory 1 | . 1 . . . Retrieve Matter 1 | . 1 . . . Scanalyzer . | . . . . . Garrison Access Hacks . | . . . . . Unauthorized Hacks . | . . . . . Terminals . | . . . . . Fabricators . | . . . . . Repair Stations . | . . . . . Recycling Units . | . . . . . Scanalyzers . | . . . . . Garrison Access . | . . . . . Data Cores Recovered . | . . . . . Used . | . . . . . Hacking Detections 3 | . 1 . . 2 Full Trace Events 1 | . . . . 1 Feedback Events . | . . . . . Feedback Blocked . | . . . . . Robot Schematics Acquired . | . . . . . Robots Built . | . . . . . Authchips . | . . . . . Time . | . . . . . Total Robot Build Rating . | . . . . . Part Schematics Acquired . | . . . . . Parts Built . | . . . . . Authchips . | . . . . . Time . | . . . . . Total Part Build Rating . | . . . . . Parts Repaired . | . . . . . Time . | . . . . . Parts Recycled . | . . . . . Recycled Matter . | . . . . . Retrieved Matter . | . . . . . Retrieved Components . | . . . . . Parts Scanalyzed . | . . . . . Part Schematics Acquired . | . . . . . Parts Damaged . | . . . . . Bothacking | -11 -10 -9 -9 -8 ------------ Run | Yrd Mat Mat Min Mat Used RIF Installer . | . . . . . Robots Hacked . | . . . . . Non-combat . | . . . . . Combat . | . . . . . Robot Hacks Applied . | . . . . . Relay Couplers Released . | . . . . . Fabnet Peak Effective % . | . . . . . Robots Rewired . | . . . . . Allies Hacked . | . . . . . Hacks Repelled . | . . . . . Allies | -11 -10 -9 -9 -8 -------- Run | Yrd Mat Mat Min Mat Total Allies . | . . . . . Largest Group . | . . . . . Highest-Rated Group . | . . . . . Highest-Rated Ally . | . . . . . Total Orders . | . . . . . Ally Attacks . | . . . . . Total Damage . | . . . . . Kills . | . . . . . Allies Corrupted . | . . . . . Allies Melted . | . . . . . Intel | -11 -10 -9 -9 -8 ------- Run | Yrd Mat Mat Min Mat Robot Analysis Total . | . . . . . Derelict Logs Recovered . | . . . . . Drone Launches . | . . . . . Drone Recoveries . | . . . . . Exploration | -11 -10 -9 -9 -8 ------------- Run | Yrd Mat Mat Min Mat Turns Passed 2627 | 73 586 18 469 1481 Spaces Moved 636 | 50 256 15 126 189 Core 50 | 5 . . . 45 Treads 22 | . . . . 22 Legs 560 | 45 256 15 126 118 Wheels 4 | . . . . 4 Hover . | . . . . . Flight . | . . . . . Fastest Speed 50 | 50 120 120 120 130 Average Speed 341 | 113 180 120 281 677 Slowest Speed 1850 | 120 190 120 680 1850 Overloaded Moves . | . . . . . Propulsion Burnouts . | . . . . . Robots Hopped . | . . . . . Cave-ins Triggered . | . . . . . Exploration Rate (%) 20 | 4 44 2 31 20 Regions Visited 4 Branch Regions 1 Pre-discovered Areas . | . . . . . Known Exits Taken . | . . . . . Unknown Exits Taken 4 | 1 1 1 1 . Scrap Searched 2 | . . . 2 . Spaces Dug . | . . . . . Terrain Destroyed 7 | . . . 4 3 Melee . | . . . . . Projectile 3 | . . . . 3 AOE 4 | . . . 4 . Terrain Rammed . | . . . . . Walls Destroyed . | . . . . . Machines Disabled . | . . . . . Actions | -11 -10 -9 -9 -8 --------- Run | Yrd Mat Mat Min Mat Total 862 | 61 309 15 192 285 Wait 27 | . 6 . 13 8 Move 632 | 49 255 14 125 189 Hop . | . . . . . Pick Up 9 | 4 3 . 2 . Fast Attach 28 | 7 3 . 10 8 Attach 10 | . . 1 2 7 Detach . | . . . . . Swap 11 | . 3 . 6 2 Drop 12 | . 3 . 6 3 Fire 94 | 1 36 . 22 35 Melee 39 | . . . 6 33 Ram . | . . . . . Kick . | . . . . . Crush . | . . . . . Escape Stasis . | . . . . . Rewire . | . . . . . Trap . | . . . . . Miscellaneous . | . . . . . Route ------- -11/Scrapyard -10/Materials -9/Materials -9/Mines -8/Materials History --------- Turn | Location | Event 32 | -11/Scrapyard | Discovered new exit (range 15) 74 | -11/Scrapyard | Entered Materials 306 | -10/Materials | Build established: Mutant 525 | -10/Materials | Discovered new exit (range 4) 607 | -10/Materials | Build established: Scavenger-Mutant 660 | -10/Materials | Entered another Materials area 660 | -9/Materials | Evolved 2 slots: Propulsion x2 661 | -9/Materials | Discovered new exit (range 14) 678 | -9/Materials | Entered Mines 1049 | -9/Mines | Core integrity fell below 50% 1118 | -9/Mines | Discovered new exit (range 11) 1147 | -9/Mines | Entered Materials 1147 | -8/Materials | Evolved 2 slots: Power x1, Weapon x1 1601 | -8/Materials | Lost 6 parts (2p4n) 1866 | -8/Materials | Build established: Mutant 2448 | -8/Materials | Core integrity fell below 50% 2467 | -8/Materials | Lost 3 parts (1p2w) 2579 | -8/Materials | Core integrity fell below 20% 2628 | -8/Materials | Destroyed by G-47 Trooper with Particle Gun Last Messages --------------- Slug penetrates Wall. Aluminum Leg destroyed. Lgt. Nuclear Core destroyed. Penetrated by Slug. Ion Engine destroyed. Penetrated by Slug. Y-45 Defender destroyed. Particle Gun destroyed. R-06 Scavenger collects Lgt. Treads. H-55 Commando destroyed. K-01 Serf collects debris. R-06 Scavenger collects Gauss Rifle. K-01 Serf collects debris. R-06 Scavenger collects Carbon-fiber Leg. K-01 Serf collects debris. R-06 Scavenger collects Heat Sink. K-01 Serf collects debris. R-06 Scavenger collects Lgt. Nuclear Core. K-01 Serf collects debris. Critical hit (Burn: +37). Map ----- +----------------------------------------------------+ | ??????????????????????????????######## # "" | | ?????????????????????????????????????# # "" | | ?????????????????????????????????????# T + | | ?????????????????????????????????????# # "" | | ?????????????????????????????????????# "% "" | | ?????????????????????????????????????# # "" | | ?????????????????????????????????????### %### | | ???????????????????????????????????????# #?# "" | | ????????????????????????? ?????????????# #?# "" | | ????????????????????????# ?????????????# #?# "" | | ????????????????????????# ???????????### ### | | ????????????????????????# ????####+### ##### | | ????????????????????????# ????# ##### | | ????????????????????????# ##### ! | | ????????????????????????# T %% =% | | ????????????????????????# % %! | | ????????????????????????# """ k % ##+## | | ????????????????????????# ""k ## #???? | | ???????????????????????## ""%% #####+####???? | | ???????????????????????# ! ##???????????? | | ???????????????????????# #????????????? | | ???????????????????????# #????????????? | | ???????????????????????# ! [ #????????????? | | ???????????????????????# k % #????????????? | | ???????????????????????#k ### ##????????????? | | ???????????????????????#r@ #?# #?????????????? | | ???????????????????? a #?# % #?????????????? | | ???????????????? grkk #?# #?????????????? | | ????????????" #?# #?????????????? | | ??????????? k #?# #?????????????? | | ???????????? t #?# #?????????????? | | ????????????########+### #?# #?????????????? | | ??????????????????? ??# T?# #?????????????? | | ?????????????????? ???# ### #?????????????? | | ????????????????? "????# #? !?????????????? | | ?????????????????"?????+ #? ?????????????? | | ???????????????????????# #? ?????????????? | | ???????????????????????# a#? ?????????????? | | ???????????????????????# #?? ??????????????? | | ???????????????????????? #???????????????????? | | ???????????????????????? ?????????????????????? | | ?????????????????????????????????????????????????? | | ?????????????????????????????????????????????????? | | ?????????????????????????????????????????????????? | | ?????????????????????????????????????????????????? | | ?????????????????????????????????????????????????? | | ?????????????????????????????????????????????????? | | ?????????????????????????????????????????????????? | | ?????????????????????????????????????????????????? | | ?????????????????????????????????????????????????? | +----------------------------------------------------+ Best States ------------- Heat Dissipation 45 Energy Generation 27 Energy Capacity 480 Matter Stores 300 Matter Capacity 300 Sight Range 16 Terrain Scan Range 16 Terrain Scan Density 10 Evasion (%) 55 Recoil Reduction 1 Item Schematics ----------------- None Robot Schematics ------------------ None Fabricated ------------ Nothing Alien Tech Used ----------------- None Achievements -------------- Hey, That's Mine! Challenges ------------ None Game ------ Seed ThermalStealthField Manual? 0 Play Time 00:16:43 Cumulative 4.7 hours Start 2024.08.03 @ 14:36:28 End 2024.08.03 @ 14:52:26 Sessions 1 Manual Loads 0 Difficulty Rogue Special Mode None Game No. 14 Rogue 14 Adventurer 0 Explorer 0 Win Type - Total 0 Types 0/0/0/0/0/0/0/0/0 Lore% 7 Gallery% 11 Achievement% 11 Wizard Run 0 Options --------- Layout 1 ASCII 0 Keyboard 0 Movement Mouse Keybinds 0 Fullscreen 1 Font 24/Smallcaps Map View 50x35 Zoom Use 0% Tactical HUD 0 Map Filters NONE Filters NONE Steam 1 RUN: 3a506afa-01d2-429a-a062-3efd7ef445d2